[Event "*** Titled Tuesday Blitz"]
[Site "Chess.com"]
[Date "2021.02.09"]
[Round "7"]
[White "kirillshevchenko"]
[Black "FontVella8"]
[Result "1-0"]
[WhiteElo "2808"]
[BlackElo "2573"]
[TimeControl "180+1"]
[EndTime "11:17:59 PST"]
[Termination "kirillshevchenko won by resignation"]

1. e4 {[%clk 0:03:00.9]} 1... e5 {[%clk 0:02:55.7]} 2. d3 {[%clk 0:03:00.5]}
2... Nc6 {[%clk 0:02:55.3]} 3. Nc3 {[%clk 0:02:59.9]} 3... Bc5 {[%clk
0:02:54.6]} 4. g3 {[%clk 0:02:58.1]} 4... Nf6 {[%clk 0:02:53.5]} 5. Bg2 {[%clk
0:02:57.2]} 5... h5 {[%clk 0:02:54.1]} 6. h3 {[%clk 0:02:55.1]} 6... a6 {[%clk
0:02:54]} 7. Nge2 {[%clk 0:02:52.5]} 7... d6 {[%clk 0:02:54.2]} 8. Bg5 {[%clk
0:02:43.3]} 8... Be6 {[%clk 0:02:44.4]} 9. O-O {[%clk 0:02:36.1]} 9... h4 {[%clk
0:02:38]} 10. g4 {[%clk 0:02:30.5]} 10... Qd7 {[%clk 0:01:54.3]} 11. Bxf6 {[%clk
0:01:59.4]} 11... gxf6 {[%clk 0:01:55.2]} 12. Nd5 {[%clk 0:02:00.1]} 12... O-O-O
{[%clk 0:01:52.5]} 13. Kh2 {[%clk 0:01:52.3]} 13... Kb8 {[%clk 0:01:38.3]} 14.
f4 {[%clk 0:01:41.8]} 14... Bxd5 {[%clk 0:01:31.2]} 15. exd5 {[%clk 0:01:41.8]}
15... Ne7 {[%clk 0:01:31.2]} 16. f5 {[%clk 0:01:34.4]} 16... c6 {[%clk
0:01:26.9]} 17. dxc6 {[%clk 0:00:52.3]} 17... bxc6 {[%clk 0:01:25.2]} 18. b4
{[%clk 0:00:52.4]} 18... Bb6 {[%clk 0:01:24.7]} 19. a4 {[%clk 0:00:52.2]} 19...
d5 {[%clk 0:01:24.1]} 20. b5 {[%clk 0:00:52.2]} 20... cxb5 {[%clk 0:01:21.5]}
21. axb5 {[%clk 0:00:52.1]} 21... a5 {[%clk 0:01:21.9]} 22. Nc3 {[%clk
0:00:41.6]} 22... Qc7 {[%clk 0:01:17.1]} 23. Na4 {[%clk 0:00:37.6]} 23... Be3
{[%clk 0:00:29.6]} 24. b6 {[%clk 0:00:35.9]} 24... Qc6 {[%clk 0:00:27.1]} 25.
Qe1 {[%clk 0:00:33.8]} 25... Bg5 {[%clk 0:00:07.6]} 26. Qxa5 {[%clk 0:00:33]}
26... Nc8 {[%clk 0:00:06.3]} 27. Nc5 {[%clk 0:00:32.2]} 27... e4 {[%clk
0:00:03.1]} 28. b7 {[%clk 0:00:28.2]} 28... Nb6 {[%clk 0:00:02.6]} 29. Qa7+
{[%clk 0:00:28]} 1-0

[Event "*** Titled Tuesday Blitz"]
[Site "Chess.com"]
[Date "2021.02.09"]
[Round "7"]
[White "crazy_but_lazy"]
[Black "ljuks68"]
[Result "1-0"]
[WhiteElo "2507"]
[BlackElo "2376"]
[TimeControl "180+1"]
[EndTime "11:17:59 PST"]
[Termination "crazy_but_lazy won on time"]

1. e4 {[%clk 0:03:00.9]} 1... e6 {[%clk 0:00:28.2]} 2. d4 {[%clk 0:02:56.3]}
2... d5 {[%clk 0:00:28.5]} 3. Bd3 {[%clk 0:02:56.7]} 3... dxe4 {[%clk
0:00:27.9]} 4. Bxe4 {[%clk 0:02:57.6]} 4... Nf6 {[%clk 0:00:28.3]} 5. Bf3 {[%clk
0:02:58.3]} 5... Nbd7 {[%clk 0:00:28.7]} 6. Ne2 {[%clk 0:02:59]} 6... Bd6 {[%clk
0:00:27.7]} 7. O-O {[%clk 0:02:59.3]} 7... e5 {[%clk 0:00:28.3]} 8. Nbc3 {[%clk
0:02:57.5]} 8... O-O {[%clk 0:00:27]} 9. Bg5 {[%clk 0:02:57.1]} 9... h6 {[%clk
0:00:26.8]} 10. Bxf6 {[%clk 0:02:56.9]} 10... Nxf6 {[%clk 0:00:24.9]} 11. Re1
{[%clk 0:02:48.6]} 11... Bf5 {[%clk 0:00:23]} 12. Ng3 {[%clk 0:02:47.3]} 12...
exd4 {[%clk 0:00:18]} 13. Nxf5 {[%clk 0:02:16]} 13... dxc3 {[%clk 0:00:17.4]}
14. bxc3 {[%clk 0:02:16.9]} 14... Bf4 {[%clk 0:00:15.7]} 15. g3 {[%clk
0:02:02.5]} 15... Bd6 {[%clk 0:00:13.6]} 16. Bxb7 {[%clk 0:02:01.3]} 16... Rb8
{[%clk 0:00:13.6]} 17. Bf3 {[%clk 0:01:57.9]} 17... Bc5 {[%clk 0:00:13.7]} 18.
Rb1 {[%clk 0:01:54.4]} 18... Rxb1 {[%clk 0:00:12.5]} 19. Qxb1 {[%clk 0:01:54.6]}
19... Qd7 {[%clk 0:00:12]} 20. Ne3 {[%clk 0:01:49.3]} 20... Re8 {[%clk
0:00:11.6]} 21. Nc4 {[%clk 0:01:41]} 21... Qf5 {[%clk 0:00:08.5]} 22. Rxe8+
{[%clk 0:01:37.8]} 22... Nxe8 {[%clk 0:00:08.5]} 23. Qd1 {[%clk 0:01:38.5]}
23... Nf6 {[%clk 0:00:08.3]} 24. Qd3 {[%clk 0:01:37.7]} 24... Qg5 {[%clk
0:00:06.9]} 25. Kg2 {[%clk 0:01:13.6]} 25... h5 {[%clk 0:00:06.9]} 26. Qd8+
{[%clk 0:01:13]} 26... Kh7 {[%clk 0:00:06.4]} 27. Qxc7 {[%clk 0:01:13.6]} 27...
h4 {[%clk 0:00:05.4]} 28. Qxf7 {[%clk 0:01:11.4]} 28... hxg3 {[%clk 0:00:03.7]}
29. hxg3 {[%clk 0:01:12.3]} 29... Ng4 {[%clk 0:00:03.5]} 30. Bxg4 {[%clk
0:00:47.1]} 30... Qxg4 {[%clk 0:00:03.6]} 31. Qd5 {[%clk 0:00:46.1]} 31... Bb6
{[%clk 0:00:02.4]} 32. Nxb6 {[%clk 0:00:45.1]} 32... axb6 {[%clk 0:00:02.7]} 33.
Qd4 {[%clk 0:00:44.8]} 33... Qg6 {[%clk 0:00:01.7]} 34. Qd3 {[%clk 0:00:44.1]}
1-0

[Event "*** Titled Tuesday Blitz"]
[Site "Chess.com"]
[Date "2021.02.09"]
[Round "7"]
[White "night_player"]
[Black "Joseacorrea"]
[Result "0-1"]
[WhiteElo "2208"]
[BlackElo "2023"]
[TimeControl "180+1"]
[EndTime "11:18:00 PST"]
[Termination "Joseacorrea won by resignation"]

1. e4 {[%clk 0:01:01.7]} 1... c5 {[%clk 0:02:59.9]} 2. c3 {[%clk 0:01:01.5]}
2... d5 {[%clk 0:02:59.2]} 3. exd5 {[%clk 0:01:01.3]} 3... Qxd5 {[%clk
0:03:00.1]} 4. d4 {[%clk 0:01:02]} 4... Nf6 {[%clk 0:02:58.8]} 5. Nf3 {[%clk
0:01:02.1]} 5... Bg4 {[%clk 0:02:57.8]} 6. Be2 {[%clk 0:01:02.6]} 6... Nc6
{[%clk 0:02:57.9]} 7. O-O {[%clk 0:01:03]} 7... cxd4 {[%clk 0:02:56.8]} 8. cxd4
{[%clk 0:01:02.7]} 8... e6 {[%clk 0:02:54.6]} 9. Nc3 {[%clk 0:01:02.5]} 9... Qd7
{[%clk 0:02:54.4]} 10. h3 {[%clk 0:01:01.4]} 10... Bxf3 {[%clk 0:02:51.8]} 11.
Bxf3 {[%clk 0:01:00.4]} 11... Nxd4 {[%clk 0:02:50.6]} 12. Bxb7 {[%clk
0:00:57.5]} 12... Qxb7 {[%clk 0:02:44.6]} 13. Qxd4 {[%clk 0:00:57.5]} 13... Be7
{[%clk 0:02:40.2]} 14. Qa4+ {[%clk 0:00:55.7]} 14... Qd7 {[%clk 0:02:33.9]} 15.
Qxd7+ {[%clk 0:00:54.8]} 15... Nxd7 {[%clk 0:02:33.8]} 16. Rd1 {[%clk
0:00:55.7]} 16... Nf6 {[%clk 0:02:28.2]} 17. Be3 {[%clk 0:00:55.4]} 17... a6
{[%clk 0:02:22.6]} 18. Rac1 {[%clk 0:00:53.5]} 18... O-O {[%clk 0:02:21.2]} 19.
Na4 {[%clk 0:00:53.7]} 19... Rfd8 {[%clk 0:02:20.1]} 20. Kf1 {[%clk 0:00:51.6]}
20... Nd5 {[%clk 0:02:13.5]} 21. Bc5 {[%clk 0:00:48.9]} 21... Bf6 {[%clk
0:01:57.1]} 22. b3 {[%clk 0:00:45]} 22... Rac8 {[%clk 0:01:50.4]} 23. b4 {[%clk
0:00:42.6]} 23... Rd7 {[%clk 0:01:43.7]} 24. Nb6 {[%clk 0:00:35.3]} 24... Nxb6
{[%clk 0:01:42.1]} 25. Bxb6 {[%clk 0:00:36.2]} 25... Rxc1 {[%clk 0:01:35.5]} 26.
Rxc1 {[%clk 0:00:37.1]} 26... g6 {[%clk 0:01:32.4]} 27. Ke2 {[%clk 0:00:35.6]}
27... Kg7 {[%clk 0:01:28]} 28. Rc7 {[%clk 0:00:33]} 28... Rd5 {[%clk 0:01:05.7]}
29. Ra7 {[%clk 0:00:27.1]} 29... Re5+ {[%clk 0:01:02.1]} 30. Kd3 {[%clk
0:00:25.5]} 30... Rd5+ {[%clk 0:00:59.8]} 31. Kc2 {[%clk 0:00:24.7]} 31... Rd6
{[%clk 0:00:49.9]} 32. a4 {[%clk 0:00:21.3]} 32... Rxb6 {[%clk 0:00:48.6]} 33.
Kb3 {[%clk 0:00:20.7]} 33... Bd4 {[%clk 0:00:43]} 34. f3 {[%clk 0:00:20]} 34...
Rxb4+ {[%clk 0:00:41.9]} 35. Kxb4 {[%clk 0:00:19.3]} 35... Bxa7 {[%clk
0:00:42.8]} 36. Ka5 {[%clk 0:00:20]} 36... Kf6 {[%clk 0:00:41.3]} 37. Kxa6
{[%clk 0:00:20.9]} 37... Be3 {[%clk 0:00:41.4]} 38. Kb5 {[%clk 0:00:19.4]} 38...
Kf5 {[%clk 0:00:42]} 39. Kc4 {[%clk 0:00:18.6]} 39... Kf4 {[%clk 0:00:42.5]} 40.
Kd3 {[%clk 0:00:19.1]} 40... Ba7 {[%clk 0:00:42.3]} 41. Ke2 {[%clk 0:00:19.1]}
41... Kg3 {[%clk 0:00:43]} 42. Kf1 {[%clk 0:00:20]} 42... e5 {[%clk 0:00:43.3]}
0-1

[Event "*** Titled Tuesday Blitz"]
[Site "Chess.com"]
[Date "2021.02.09"]
[Round "7"]
[White "LucaBrasi1968"]
[Black "Witik"]
[Result "0-1"]
[WhiteElo "2530"]
[BlackElo "2714"]
[TimeControl "180+1"]
[EndTime "11:18:03 PST"]
[Termination "Witik won on time"]

1. d4 {[%clk 0:03:00.9]} 1... d5 {[%clk 0:02:51.4]} 2. Nf3 {[%clk 0:03:00.4]}
2... e6 {[%clk 0:02:49]} 3. Bf4 {[%clk 0:02:57.8]} 3... Bd6 {[%clk 0:02:39]} 4.
Bg3 {[%clk 0:02:55.1]} 4... f5 {[%clk 0:02:38.7]} 5. e3 {[%clk 0:02:52.6]} 5...
Nf6 {[%clk 0:02:38.1]} 6. Nc3 {[%clk 0:02:50.8]} 6... O-O {[%clk 0:02:37.1]} 7.
Bd3 {[%clk 0:02:48.6]} 7... Ne4 {[%clk 0:02:36.7]} 8. Ne2 {[%clk 0:02:40.3]}
8... Nd7 {[%clk 0:02:32.4]} 9. c3 {[%clk 0:02:36.2]} 9... Nxg3 {[%clk
0:02:22.1]} 10. hxg3 {[%clk 0:02:35]} 10... e5 {[%clk 0:02:21.6]} 11. dxe5
{[%clk 0:02:30.7]} 11... Nxe5 {[%clk 0:02:22.5]} 12. Nxe5 {[%clk 0:02:10.9]}
12... Bxe5 {[%clk 0:02:23.4]} 13. Qc2 {[%clk 0:01:50.8]} 13... g6 {[%clk
0:02:06.1]} 14. O-O-O {[%clk 0:01:49.2]} 14... c6 {[%clk 0:02:05.5]} 15. c4
{[%clk 0:01:41.3]} 15... Qa5 {[%clk 0:02:04.5]} 16. cxd5 {[%clk 0:00:59.6]}
16... cxd5 {[%clk 0:02:03.4]} 17. Kb1 {[%clk 0:00:54.3]} 17... Be6 {[%clk
0:02:01.3]} 18. Nd4 {[%clk 0:00:53]} 18... Bf7 {[%clk 0:01:56.2]} 19. Qd2 {[%clk
0:00:51.5]} 19... Qb6 {[%clk 0:01:55.3]} 20. Be2 {[%clk 0:00:49.3]} 20... Rac8
{[%clk 0:01:50.1]} 21. Bf3 {[%clk 0:00:48.9]} 21... Rfd8 {[%clk 0:01:43.9]} 22.
Rc1 {[%clk 0:00:41.2]} 22... Rc4 {[%clk 0:01:42.4]} 23. Be2 {[%clk 0:00:34.8]}
23... Rxd4 {[%clk 0:01:17.5]} 24. exd4 {[%clk 0:00:34.1]} 24... Bxd4 {[%clk
0:01:18.4]} 25. Rcd1 {[%clk 0:00:20.6]} 25... Bf6 {[%clk 0:01:04.8]} 26. Bf3
{[%clk 0:00:16.3]} 26... h5 {[%clk 0:01:04.6]} 27. Qc2 {[%clk 0:00:14.8]} 27...
Kg7 {[%clk 0:01:04.3]} 28. Rd2 {[%clk 0:00:15.2]} 28... d4 {[%clk 0:01:00.3]}
29. Rhd1 {[%clk 0:00:15.1]} 29... Re8 {[%clk 0:01:00.4]} 30. Be2 {[%clk
0:00:09.2]} 30... Qa5 {[%clk 0:00:59.7]} 31. Bd3 {[%clk 0:00:09.2]} 31... Bxa2+
{[%clk 0:00:54.4]} 32. Kc1 {[%clk 0:00:08.2]} 32... Be6 {[%clk 0:00:54.4]} 33.
Bc4 {[%clk 0:00:05.6]} 33... Qa1+ {[%clk 0:00:50]} 34. Qb1 {[%clk 0:00:04.5]}
34... Qxb1+ {[%clk 0:00:50.3]} 35. Kxb1 {[%clk 0:00:05.4]} 35... Bxc4 {[%clk
0:00:50.7]} 36. Rc1 {[%clk 0:00:05.9]} 36... Bd5 {[%clk 0:00:47.3]} 37. f3
{[%clk 0:00:04.7]} 37... Bc6 {[%clk 0:00:46.5]} 0-1

[Event "*** Titled Tuesday Blitz"]
[Site "Chess.com"]
[Date "2021.02.09"]
[Round "7"]
[White "youngKID"]
[Black "swisspower96"]
[Result "1-0"]
[WhiteElo "2850"]
[BlackElo "2682"]
[TimeControl "180+1"]
[EndTime "11:18:04 PST"]
[Termination "youngKID won by resignation"]

1. e4 {[%clk 0:03:00.9]} 1... e5 {[%clk 0:02:59.4]} 2. Nf3 {[%clk 0:03:00.7]}
2... Nf6 {[%clk 0:03:00]} 3. Nxe5 {[%clk 0:02:57.3]} 3... d6 {[%clk 0:03:00.1]}
4. Nf3 {[%clk 0:02:57.6]} 4... Nxe4 {[%clk 0:03:00.8]} 5. Nc3 {[%clk 0:02:58]}
5... Nxc3 {[%clk 0:03:01.2]} 6. dxc3 {[%clk 0:02:58.9]} 6... Be7 {[%clk
0:03:01.9]} 7. Be3 {[%clk 0:02:59]} 7... O-O {[%clk 0:03:02.2]} 8. Qd2 {[%clk
0:02:58.9]} 8... Nd7 {[%clk 0:03:02.8]} 9. Bd3 {[%clk 0:02:57.6]} 9... Nf6
{[%clk 0:03:03.2]} 10. O-O-O {[%clk 0:02:55.4]} 10... c5 {[%clk 0:03:03.5]} 11.
Kb1 {[%clk 0:02:44.9]} 11... Be6 {[%clk 0:02:36.2]} 12. Ng5 {[%clk 0:02:40.2]}
12... Bg4 {[%clk 0:02:34.5]} 13. f3 {[%clk 0:02:39.6]} 13... Bd7 {[%clk
0:02:34.6]} 14. h4 {[%clk 0:02:33.9]} 14... d5 {[%clk 0:02:26.9]} 15. Nxh7
{[%clk 0:02:12.8]} 15... Re8 {[%clk 0:01:36]} 16. Nxf6+ {[%clk 0:02:06]} 16...
Bxf6 {[%clk 0:01:36.3]} 17. Bxc5 {[%clk 0:02:06.6]} 17... a5 {[%clk 0:01:25.3]}
18. Bd4 {[%clk 0:01:54.6]} 18... a4 {[%clk 0:01:25.6]} 19. a3 {[%clk 0:01:54.7]}
19... Bxd4 {[%clk 0:01:12.9]} 20. cxd4 {[%clk 0:01:55.6]} 20... Re6 {[%clk
0:01:13.6]} 21. h5 {[%clk 0:01:47]} 21... Qf6 {[%clk 0:01:05.8]} 22. h6 {[%clk
0:00:54.1]} 22... gxh6 {[%clk 0:01:04.9]} 23. Rh5 {[%clk 0:00:51.4]} 23... Kg7
{[%clk 0:00:51.9]} 24. Rxd5 {[%clk 0:00:49.4]} 24... Bc6 {[%clk 0:00:51.9]} 25.
Rf5 {[%clk 0:00:49.3]} 25... Qd8 {[%clk 0:00:22.6]} 26. d5 {[%clk 0:00:32]}
26... Bxd5 {[%clk 0:00:22.4]} 27. Qc3+ {[%clk 0:00:24.1]} 27... f6 {[%clk
0:00:17.7]} 28. Bc4 {[%clk 0:00:16.3]} 28... Bxc4 {[%clk 0:00:15.1]} 29. Rxd8
{[%clk 0:00:15.7]} 29... Rxd8 {[%clk 0:00:16]} 30. Qxc4 {[%clk 0:00:16]} 30...
Re1+ {[%clk 0:00:16.9]} 31. Ka2 {[%clk 0:00:16.4]} 31... Rdd1 {[%clk 0:00:17.8]}
32. Qxa4 {[%clk 0:00:14.9]} 1-0

[Event "*** Titled Tuesday Blitz"]
[Site "Chess.com"]
[Date "2021.02.09"]
[Round "7"]
[White "serhanberat_ozdemir"]
[Black "azikom"]
[Result "1-0"]
[WhiteElo "2495"]
[BlackElo "2638"]
[TimeControl "180+1"]
[EndTime "11:18:05 PST"]
[Termination "serhanberat_ozdemir won on time"]

1. e4 {[%clk 0:03:00.9]} 1... c6 {[%clk 0:02:58.5]} 2. d4 {[%clk 0:03:00.7]}
2... d5 {[%clk 0:02:59]} 3. exd5 {[%clk 0:03:01.6]} 3... cxd5 {[%clk 0:02:59.3]}
4. c4 {[%clk 0:03:02.3]} 4... Nf6 {[%clk 0:02:59.3]} 5. Nc3 {[%clk 0:03:02.7]}
5... e6 {[%clk 0:02:59.8]} 6. Nf3 {[%clk 0:03:02.4]} 6... Be7 {[%clk 0:02:58.7]}
7. Bd3 {[%clk 0:03:00.9]} 7... dxc4 {[%clk 0:02:57.4]} 8. Bxc4 {[%clk
0:03:00.4]} 8... O-O {[%clk 0:02:58.1]} 9. O-O {[%clk 0:03:00.3]} 9... Nc6
{[%clk 0:02:58.8]} 10. Be3 {[%clk 0:02:47.4]} 10... b6 {[%clk 0:02:58.2]} 11.
Rc1 {[%clk 0:02:41.4]} 11... Bb7 {[%clk 0:02:58.1]} 12. a3 {[%clk 0:02:29.9]}
12... Na5 {[%clk 0:02:57.1]} 13. Ba2 {[%clk 0:02:29.2]} 13... Nd5 {[%clk
0:02:57.6]} 14. Ne5 {[%clk 0:02:18.2]} 14... Rc8 {[%clk 0:02:43.6]} 15. Qg4
{[%clk 0:02:02.4]} 15... Nxc3 {[%clk 0:02:01.9]} 16. Rxc3 {[%clk 0:02:00.5]}
16... Rxc3 {[%clk 0:02:01]} 17. bxc3 {[%clk 0:01:59.1]} 17... Qd6 {[%clk
0:01:20.1]} 18. Bf4 {[%clk 0:01:07.5]} 18... Qxa3 {[%clk 0:00:50.9]} 19. Bxe6
{[%clk 0:01:05.6]} 19... fxe6 {[%clk 0:00:44.7]} 20. Qxe6+ {[%clk 0:01:06.5]}
20... Kh8 {[%clk 0:00:44.7]} 21. Nf7+ {[%clk 0:01:06]} 21... Rxf7 {[%clk
0:00:44.6]} 22. Qxf7 {[%clk 0:01:06.9]} 22... Bf8 {[%clk 0:00:33.1]} 23. Re1
{[%clk 0:01:06.9]} 23... h6 {[%clk 0:00:27.3]} 24. h3 {[%clk 0:00:55.1]} 24...
Bc6 {[%clk 0:00:26.7]} 25. d5 {[%clk 0:00:46.5]} 25... Ba4 {[%clk 0:00:22]} 26.
Be5 {[%clk 0:00:46.9]} 26... Qc5 {[%clk 0:00:16.7]} 27. Re3 {[%clk 0:00:35.3]}
27... Nc4 {[%clk 0:00:11]} 28. Bd4 {[%clk 0:00:35.8]} 28... Qc8 {[%clk
0:00:10.1]} 29. Rg3 {[%clk 0:00:29.5]} 1-0

[Event "*** Titled Tuesday Blitz"]
[Site "Chess.com"]
[Date "2021.02.09"]
[Round "7"]
[White "Spartakus1975"]
[Black "shaheus"]
[Result "1-0"]
[WhiteElo "2574"]
[BlackElo "2396"]
[TimeControl "180+1"]
[EndTime "11:18:10 PST"]
[Termination "Spartakus1975 won on time"]

1. e4 {[%clk 0:03:00.9]} 1... c5 {[%clk 0:02:59.4]} 2. c3 {[%clk 0:03:00.8]}
2... e5 {[%clk 0:02:58.7]} 3. Nf3 {[%clk 0:02:59.9]} 3... Nc6 {[%clk 0:02:58.3]}
4. Bc4 {[%clk 0:02:59]} 4... d6 {[%clk 0:02:56.2]} 5. O-O {[%clk 0:02:58.6]}
5... Be7 {[%clk 0:02:54.8]} 6. d4 {[%clk 0:02:50.1]} 6... Nf6 {[%clk 0:02:48.1]}
7. Re1 {[%clk 0:02:49.5]} 7... O-O {[%clk 0:02:47.3]} 8. h3 {[%clk 0:02:49.9]}
8... cxd4 {[%clk 0:02:46.5]} 9. cxd4 {[%clk 0:02:49.4]} 9... a6 {[%clk
0:02:45.7]} 10. Nc3 {[%clk 0:02:48.6]} 10... b5 {[%clk 0:02:42.6]} 11. Bb3
{[%clk 0:02:48.7]} 11... Bb7 {[%clk 0:02:36.7]} 12. Bg5 {[%clk 0:02:35.1]} 12...
h6 {[%clk 0:02:33.6]} 13. Bh4 {[%clk 0:02:20.5]} 13... b4 {[%clk 0:02:03.6]} 14.
Na4 {[%clk 0:01:57.5]} 14... Rc8 {[%clk 0:01:42.5]} 15. Rc1 {[%clk 0:01:49.4]}
15... Nxd4 {[%clk 0:01:31.9]} 16. Nxd4 {[%clk 0:01:48.6]} 16... Rxc1 {[%clk
0:01:30.8]} 17. Qxc1 {[%clk 0:01:47.2]} 17... exd4 {[%clk 0:01:30.9]} 18. Qc4
{[%clk 0:01:32.2]} 18... d5 {[%clk 0:01:14.5]} 19. exd5 {[%clk 0:01:22.3]} 19...
Bxd5 {[%clk 0:01:11.4]} 20. Qxd4 {[%clk 0:01:22.3]} 20... Bxb3 {[%clk 0:00:59]}
21. Qxd8 {[%clk 0:01:21.6]} 21... Rxd8 {[%clk 0:00:40.4]} 22. axb3 {[%clk
0:01:19.5]} 22... Kf8 {[%clk 0:00:40.4]} 23. Nb6 {[%clk 0:01:17.1]} 23... Nd5
{[%clk 0:00:20]} 24. Nxd5 {[%clk 0:01:08.1]} 24... Bxh4 {[%clk 0:00:19.5]} 25.
Nxb4 {[%clk 0:01:08.6]} 25... Rd6 {[%clk 0:00:16.4]} 26. g3 {[%clk 0:00:59.5]}
26... Bf6 {[%clk 0:00:15.5]} 27. Ra1 {[%clk 0:00:59.6]} 27... Bxb2 {[%clk
0:00:13.1]} 28. Rxa6 {[%clk 0:00:59.5]} 28... Rd2 {[%clk 0:00:11.3]} 29. Nc6
{[%clk 0:00:55.2]} 29... g6 {[%clk 0:00:09.5]} 30. Ra2 {[%clk 0:00:47.4]} 30...
Kg7 {[%clk 0:00:07.1]} 31. Kg2 {[%clk 0:00:46.1]} 31... h5 {[%clk 0:00:05.5]}
32. Ne5 {[%clk 0:00:39.9]} 32... Bc3 {[%clk 0:00:02.8]} 33. Rxd2 {[%clk
0:00:38.5]} 33... Bxd2 {[%clk 0:00:03]} 34. Kf3 {[%clk 0:00:37.4]} 34... Kf6
{[%clk 0:00:02.1]} 35. Nd3 {[%clk 0:00:36.6]} 1-0

[Event "*** Titled Tuesday Blitz"]
[Site "Chess.com"]
[Date "2021.02.09"]
[Round "7"]
[White "GOGIEFF"]
[Black "Evgeny81"]
[Result "0-1"]
[WhiteElo "2889"]
[BlackElo "2755"]
[TimeControl "180+1"]
[EndTime "11:18:11 PST"]
[Termination "Evgeny81 won by resignation"]

1. d4 {[%clk 0:03:00.9]} 1... d5 {[%clk 0:02:59.7]} 2. c4 {[%clk 0:03:00.7]}
2... c6 {[%clk 0:03:00.1]} 3. Nc3 {[%clk 0:03:00.6]} 3... Nf6 {[%clk 0:03:00.5]}
4. cxd5 {[%clk 0:03:01]} 4... cxd5 {[%clk 0:03:00.3]} 5. Bg5 {[%clk 0:03:01]}
5... Ne4 {[%clk 0:02:49.6]} 6. Nxe4 {[%clk 0:03:01.1]} 6... dxe4 {[%clk
0:02:50.5]} 7. a3 {[%clk 0:03:01.7]} 7... Qb6 {[%clk 0:02:45.8]} 8. Bd2 {[%clk
0:02:37.9]} 8... Bf5 {[%clk 0:02:33.1]} 9. e3 {[%clk 0:02:37.1]} 9... e6 {[%clk
0:02:29.3]} 10. Ne2 {[%clk 0:02:35.7]} 10... Nd7 {[%clk 0:02:13.7]} 11. Nc3
{[%clk 0:02:27]} 11... Be7 {[%clk 0:02:06.9]} 12. Bb5 {[%clk 0:02:19.7]} 12...
Rd8 {[%clk 0:02:00.2]} 13. O-O {[%clk 0:02:11.4]} 13... O-O {[%clk 0:01:56.7]}
14. b4 {[%clk 0:02:09.6]} 14... Nf6 {[%clk 0:01:53.2]} 15. Be2 {[%clk
0:02:07.7]} 15... Nd5 {[%clk 0:01:50.4]} 16. Na4 {[%clk 0:01:54.6]} 16... Qc7
{[%clk 0:01:44.5]} 17. Rc1 {[%clk 0:01:54.1]} 17... Qb8 {[%clk 0:01:44.7]} 18.
Nc5 {[%clk 0:01:45.3]} 18... Bd6 {[%clk 0:01:39.1]} 19. h3 {[%clk 0:01:40.8]}
19... b6 {[%clk 0:01:36.4]} 20. Na6 {[%clk 0:01:31.1]} 20... Qb7 {[%clk
0:01:35.8]} 21. Qa4 {[%clk 0:01:26.8]} 21... Qe7 {[%clk 0:01:33.2]} 22. f4
{[%clk 0:01:06.9]} 22... exf3 {[%clk 0:01:24.7]} 23. Bxf3 {[%clk 0:01:07]} 23...
Qg5 {[%clk 0:01:15.4]} 24. g4 {[%clk 0:00:44.5]} 24... Qh4 {[%clk 0:00:48.3]}
25. Bg2 {[%clk 0:00:38.3]} 25... Qg3 {[%clk 0:00:44.1]} 26. gxf5 {[%clk
0:00:29.9]} 26... Nxe3 {[%clk 0:00:44.2]} 27. Bxe3 {[%clk 0:00:27]} 27... Qxe3+
{[%clk 0:00:43.7]} 28. Kh1 {[%clk 0:00:27.4]} 28... Qg3 {[%clk 0:00:44.2]} 29.
Kg1 {[%clk 0:00:27]} 29... Qh2+ {[%clk 0:00:41]} 30. Kf2 {[%clk 0:00:27.2]}
30... Bg3+ {[%clk 0:00:38.5]} 31. Kf3 {[%clk 0:00:27.5]} 31... Bh4 {[%clk
0:00:36.7]} 32. Qc6 {[%clk 0:00:18.9]} 32... Rxd4 {[%clk 0:00:24.5]} 33. Rcd1
{[%clk 0:00:18.5]} 33... Qf4+ {[%clk 0:00:17.2]} 34. Ke2 {[%clk 0:00:18.8]}
34... Qe5+ {[%clk 0:00:17.4]} 0-1